[Event "Early-Titled-Tuesday-Blitz-May-28-2024"]
[Site "Chess.com"]
[Date "2024.05.28"]
[Round "9"]
[White "balack95"]
[Black "ChessSwole"]
[Result "0-1"]
[WhiteElo "2504"]
[BlackElo "2690"]
[TimeControl "180+1"]
[EndTime "9:47:35 PDT"]
[Termination "ChessSwole won by resignation"]

1. Nf3 {[%clk 0:03:00.9]} 1... Nf6 {[%clk 0:02:59.1]} 2. c4 {[%clk 0:03:00.1]}
2... c5 {[%clk 0:02:58.3]} 3. g3 {[%clk 0:03:00.4]} 3... d5 {[%clk 0:02:56.8]}
4. Bg2 {[%clk 0:02:59]} 4... Nc6 {[%clk 0:02:53.4]} 5. O-O {[%clk 0:02:59.4]}
5... e5 {[%clk 0:02:52.7]} 6. cxd5 {[%clk 0:02:57.2]} 6... Nxd5 {[%clk
0:02:53.6]} 7. Nc3 {[%clk 0:02:56.4]} 7... Nc7 {[%clk 0:02:53.4]} 8. d3 {[%clk
0:02:55.9]} 8... Be7 {[%clk 0:02:53.2]} 9. Be3 {[%clk 0:02:54.7]} 9... O-O
{[%clk 0:02:52.9]} 10. Rc1 {[%clk 0:02:55.2]} 10... Re8 {[%clk 0:02:48]} 11. Ne4
{[%clk 0:02:46.5]} 11... b6 {[%clk 0:02:45.4]} 12. Bg5 {[%clk 0:02:36.9]} 12...
Bb7 {[%clk 0:02:39.6]} 13. a3 {[%clk 0:02:36.5]} 13... a5 {[%clk 0:02:37.3]} 14.
Bxe7 {[%clk 0:02:33.9]} 14... Qxe7 {[%clk 0:02:37.2]} 15. Nfd2 {[%clk
0:02:20.4]} 15... Nd4 {[%clk 0:02:15.8]} 16. Nc4 {[%clk 0:02:16.9]} 16... Ra6
{[%clk 0:02:13.7]} 17. b4 {[%clk 0:02:03.6]} 17... axb4 {[%clk 0:01:50.3]} 18.
axb4 {[%clk 0:02:02.9]} 18... b5 {[%clk 0:01:41.4]} 19. Ncd6 {[%clk 0:01:47.4]}
19... Bxe4 {[%clk 0:01:38]} 20. Nxe4 {[%clk 0:01:41.2]} 20... cxb4 {[%clk
0:01:31.5]} 21. e3 {[%clk 0:01:41.4]} 21... Nde6 {[%clk 0:01:27.3]} 22. g4
{[%clk 0:01:30.1]} 22... Rd8 {[%clk 0:01:25.4]} 23. Qc2 {[%clk 0:01:29]} 23...
Ra3 {[%clk 0:01:18.7]} 24. Qb2 {[%clk 0:01:25.7]} 24... Raxd3 {[%clk 0:01:13.9]}
25. Qxe5 {[%clk 0:01:25.6]} 25... R3d5 {[%clk 0:01:07]} 26. Qb2 {[%clk
0:01:18.5]} 26... h6 {[%clk 0:01:04.6]} 27. Ng3 {[%clk 0:01:17.3]} 27... Rd2
{[%clk 0:01:04]} 28. Qe5 {[%clk 0:01:12.3]} 28... Qd6 {[%clk 0:00:53.1]} 29. Qe4
{[%clk 0:01:06.3]} 29... Ng5 {[%clk 0:00:47.8]} 30. Qb1 {[%clk 0:01:06.5]} 30...
Nd5 {[%clk 0:00:41.8]} 31. Nf5 {[%clk 0:01:05.6]} 31... Qf8 {[%clk 0:00:42.1]}
32. Rfd1 {[%clk 0:01:00.4]} 32... Nc3 {[%clk 0:00:40]} 33. Rxd2 {[%clk
0:00:49.6]} 33... Rxd2 {[%clk 0:00:37.2]} 34. Rxc3 {[%clk 0:00:39.3]} 34... bxc3
{[%clk 0:00:37]} 35. Nd4 {[%clk 0:00:33.5]} 35... b4 {[%clk 0:00:32.6]} 36. Bd5
{[%clk 0:00:29.8]} 36... Qd6 {[%clk 0:00:30]} 37. Qb3 {[%clk 0:00:29.5]} 37...
c2 {[%clk 0:00:26.9]} 38. Bxf7+ {[%clk 0:00:22]} 38... Nxf7 {[%clk 0:00:26.4]}
39. Nxc2 {[%clk 0:00:21.9]} 39... Qd5 {[%clk 0:00:17.3]} 40. Qxd5 {[%clk
0:00:21.5]} 40... Rxd5 {[%clk 0:00:18.2]} 41. Nxb4 {[%clk 0:00:22.2]} 41... Rd2
{[%clk 0:00:17.8]} 42. Kf1 {[%clk 0:00:19.1]} 42... Ne5 {[%clk 0:00:18.3]} 43.
h3 {[%clk 0:00:19.1]} 43... Nd3 {[%clk 0:00:18.3]} 44. Nxd3 {[%clk 0:00:15]}
44... Rxd3 {[%clk 0:00:19.2]} 45. Ke2 {[%clk 0:00:15.7]} 45... Ra3 {[%clk
0:00:19.6]} 46. Kf3 {[%clk 0:00:16.6]} 46... Kf7 {[%clk 0:00:20.3]} 47. Kf4
{[%clk 0:00:17.1]} 47... Kf6 {[%clk 0:00:20.4]} 48. h4 {[%clk 0:00:17.4]} 48...
g5+ {[%clk 0:00:21.1]} 49. hxg5+ {[%clk 0:00:18]} 49... hxg5+ {[%clk 0:00:22]}
50. Ke4 {[%clk 0:00:18]} 50... Ra4+ {[%clk 0:00:22.6]} 51. Kf3 {[%clk
0:00:18.1]} 51... Ke5 {[%clk 0:00:22.9]} 52. Kg3 {[%clk 0:00:18.7]} 52... Ke4
{[%clk 0:00:23.5]} 53. Kg2 {[%clk 0:00:18.8]} 53... Ra3 {[%clk 0:00:23.8]} 54.
Kg3 {[%clk 0:00:19.5]} 54... Ra1 {[%clk 0:00:24.2]} 55. Kg2 {[%clk 0:00:19.7]}
55... Kd3 {[%clk 0:00:24.2]} 56. Kf3 {[%clk 0:00:20]} 56... Ra4 {[%clk
0:00:23.3]} 57. Kg3 {[%clk 0:00:19.5]} 57... Ke2 {[%clk 0:00:23.8]} 58. f4
{[%clk 0:00:20.2]} 58... Kxe3 {[%clk 0:00:21.1]} 59. fxg5 {[%clk 0:00:20.6]}
59... Ke4 {[%clk 0:00:21.4]} 60. Kh4 {[%clk 0:00:21.1]} 60... Ke5 {[%clk
0:00:21.5]} 61. Kh5 {[%clk 0:00:21.8]} 61... Ke6 {[%clk 0:00:22]} 62. Kh6 {[%clk
0:00:22.5]} 62... Kf7 {[%clk 0:00:22.3]} 63. Kh7 {[%clk 0:00:22.8]} 63... Ra6
{[%clk 0:00:21.8]} 64. g6+ {[%clk 0:00:23.7]} 64... Rxg6 {[%clk 0:00:22.2]} 65.
g5 {[%clk 0:00:23.5]} 65... Rxg5 {[%clk 0:00:22.3]} 66. Kh6 {[%clk 0:00:24.4]}
66... Kf6 {[%clk 0:00:22]} 0-1

[Event "Early-Titled-Tuesday-Blitz-May-28-2024"]
[Site "Chess.com"]
[Date "2024.05.28"]
[Round "9"]
[White "Malev212"]
[Black "TomLiu777"]
[Result "0-1"]
[WhiteElo "2634"]
[BlackElo "2419"]
[TimeControl "180+1"]
[EndTime "9:47:36 PDT"]
[Termination "TomLiu777 won on time"]

1. d4 {[%clk 0:03:00.9]} 1... Nf6 {[%clk 0:02:57.3]} 2. Bf4 {[%clk 0:02:59.4]}
2... c5 {[%clk 0:02:56.7]} 3. d5 {[%clk 0:02:58.7]} 3... d6 {[%clk 0:02:54]} 4.
Nc3 {[%clk 0:02:58.3]} 4... e5 {[%clk 0:02:53.6]} 5. dxe6 {[%clk 0:02:56.6]}
5... Bxe6 {[%clk 0:02:33.3]} 6. e4 {[%clk 0:02:55.6]} 6... Be7 {[%clk
0:02:30.9]} 7. Nf3 {[%clk 0:02:54]} 7... O-O {[%clk 0:02:28.4]} 8. Ng5 {[%clk
0:02:50.4]} 8... Bg4 {[%clk 0:02:17.1]} 9. Qd2 {[%clk 0:02:49.2]} 9... Nc6
{[%clk 0:02:13.3]} 10. h3 {[%clk 0:02:45.6]} 10... Bh5 {[%clk 0:02:06]} 11. Bc4
{[%clk 0:02:28]} 11... Nd4 {[%clk 0:01:45.1]} 12. f3 {[%clk 0:02:18.7]} 12... h6
{[%clk 0:01:39.7]} 13. h4 {[%clk 0:02:18.1]} 13... d5 {[%clk 0:01:22.8]} 14.
Nxd5 {[%clk 0:02:14]} 14... Nxd5 {[%clk 0:01:22.5]} 15. Bxd5 {[%clk 0:02:14]}
15... hxg5 {[%clk 0:01:17.8]} 16. hxg5 {[%clk 0:02:13.9]} 16... Bxf3 {[%clk
0:01:09.3]} 17. g6 {[%clk 0:01:23.1]} 17... Bh4+ {[%clk 0:01:05.7]} 18. Kf1
{[%clk 0:01:15.3]} 18... Be2+ {[%clk 0:01:05]} 19. Kg1 {[%clk 0:00:47.6]} 19...
Qf6 {[%clk 0:01:04.1]} 20. gxf7+ {[%clk 0:00:38.7]} 20... Rxf7 {[%clk
0:00:58.1]} 21. c3 {[%clk 0:00:38.7]} 21... Nf3+ {[%clk 0:00:42.7]} 22. gxf3
{[%clk 0:00:37.6]} 22... Qg6+ {[%clk 0:00:42.1]} 23. Kh2 {[%clk 0:00:33.1]}
23... Bxf3 {[%clk 0:00:35.8]} 24. Rhg1 {[%clk 0:00:27.9]} 24... Qh5 {[%clk
0:00:19.2]} 25. Bxf7+ {[%clk 0:00:27.6]} 25... Kxf7 {[%clk 0:00:18.4]} 26. Qd7+
{[%clk 0:00:24.4]} 26... Be7+ {[%clk 0:00:16.8]} 27. Qh3 {[%clk 0:00:19.4]}
27... Rh8 {[%clk 0:00:10.8]} 28. Qxh5+ {[%clk 0:00:18.4]} 28... Bxh5 {[%clk
0:00:06.4]} 29. Kg3 {[%clk 0:00:16]} 29... Bg6 {[%clk 0:00:05.5]} 30. Rh1 {[%clk
0:00:15.9]} 30... Rd8 {[%clk 0:00:05.1]} 31. Rad1 {[%clk 0:00:14.8]} 31... Re8
{[%clk 0:00:05]} 32. e5 {[%clk 0:00:13.7]} 32... Ke6 {[%clk 0:00:04.6]} 33. Kf3
{[%clk 0:00:12.9]} 33... Bf5 {[%clk 0:00:03.4]} 34. Rhg1 {[%clk 0:00:11.5]}
34... Rg8 {[%clk 0:00:03]} 35. Bg5 {[%clk 0:00:10.6]} 35... Bxg5 {[%clk
0:00:02.5]} 36. Rxg5 {[%clk 0:00:09.7]} 36... g6 {[%clk 0:00:02.8]} 37. Rg2
{[%clk 0:00:06.4]} 37... Kxe5 {[%clk 0:00:02.4]} 38. Re2+ {[%clk 0:00:06.1]}
38... Kf6 {[%clk 0:00:03]} 39. Rd6+ {[%clk 0:00:04.8]} 39... Kg5 {[%clk
0:00:03.5]} 40. Rg2+ {[%clk 0:00:03.2]} 40... Kh6 {[%clk 0:00:02.7]} 0-1

[Event "Early-Titled-Tuesday-Blitz-May-28-2024"]
[Site "Chess.com"]
[Date "2024.05.28"]
[Round "9"]
[White "Zhigalko_Sergei"]
[Black "js20000"]
[Result "0-1"]
[WhiteElo "2883"]
[BlackElo "2715"]
[TimeControl "180+1"]
[EndTime "9:47:37 PDT"]
[Termination "js20000 won by checkmate"]

1. e4 {[%clk 0:03:00.9]} 1... d6 {[%clk 0:02:57.5]} 2. d4 {[%clk 0:03:01]} 2...
Nf6 {[%clk 0:02:57]} 3. Nc3 {[%clk 0:03:01.4]} 3... e6 {[%clk 0:02:57.3]} 4. Nf3
{[%clk 0:03:01.5]} 4... Be7 {[%clk 0:02:55.9]} 5. Bd3 {[%clk 0:02:59.9]} 5...
Nc6 {[%clk 0:02:55.3]} 6. e5 {[%clk 0:02:56.6]} 6... Nd7 {[%clk 0:02:54.2]} 7.
Qe2 {[%clk 0:02:53.5]} 7... Nb4 {[%clk 0:02:53.4]} 8. O-O {[%clk 0:02:32.9]}
8... Nxd3 {[%clk 0:02:42.7]} 9. Qxd3 {[%clk 0:02:33.8]} 9... d5 {[%clk
0:02:40.9]} 10. Ne2 {[%clk 0:02:28.3]} 10... c5 {[%clk 0:02:40.4]} 11. c3 {[%clk
0:02:27.7]} 11... Qb6 {[%clk 0:02:37.4]} 12. Ng3 {[%clk 0:02:07.9]} 12... Qa6
{[%clk 0:02:33.7]} 13. Qd1 {[%clk 0:02:04]} 13... h5 {[%clk 0:01:53.3]} 14. Bg5
{[%clk 0:01:59.7]} 14... f6 {[%clk 0:01:53]} 15. exf6 {[%clk 0:01:55.5]} 15...
gxf6 {[%clk 0:01:53.5]} 16. Bh4 {[%clk 0:01:46.5]} 16... Nf8 {[%clk 0:01:48.7]}
17. Re1 {[%clk 0:01:39.8]} 17... Ng6 {[%clk 0:01:48]} 18. Qc2 {[%clk 0:01:40]}
18... Kf7 {[%clk 0:01:43.5]} 19. Re3 {[%clk 0:00:59.8]} 19... cxd4 {[%clk
0:01:22.3]} 20. cxd4 {[%clk 0:00:55.9]} 20... Bd7 {[%clk 0:01:22.4]} 21. Rae1
{[%clk 0:00:55.8]} 21... Rac8 {[%clk 0:01:20.2]} 22. Qb1 {[%clk 0:00:55.8]}
22... Bb4 {[%clk 0:01:12.2]} 23. Rd1 {[%clk 0:00:37.2]} 23... Qc4 {[%clk
0:01:05.6]} 24. a3 {[%clk 0:00:32.2]} 24... Bd6 {[%clk 0:01:00.3]} 25. Rc3
{[%clk 0:00:31.4]} 25... Qa4 {[%clk 0:00:59.9]} 26. Re3 {[%clk 0:00:24.6]} 26...
Qc2 {[%clk 0:00:57.7]} 27. Qa1 {[%clk 0:00:23.5]} 27... Bf4 {[%clk 0:00:51.5]}
28. Re2 {[%clk 0:00:23.5]} 28... Qc4 {[%clk 0:00:43.7]} 29. Rde1 {[%clk
0:00:22.8]} 29... Qc1 {[%clk 0:00:13.4]} 30. Qa2 {[%clk 0:00:17.2]} 30... Qc4
{[%clk 0:00:12.6]} 31. Qb1 {[%clk 0:00:17.4]} 31... Rcg8 {[%clk 0:00:11.3]} 32.
h3 {[%clk 0:00:14.4]} 32... Nxh4 {[%clk 0:00:10.8]} 33. Nxh4 {[%clk 0:00:14]}
33... Qxd4 {[%clk 0:00:10.1]} 34. Ngf5 {[%clk 0:00:10.2]} 34... Qb6 {[%clk
0:00:08.4]} 35. Qd3 {[%clk 0:00:06.9]} 35... Be5 {[%clk 0:00:04.9]} 36. Ng3
{[%clk 0:00:04.4]} 36... Rxg3 {[%clk 0:00:04.1]} 37. Nf3 {[%clk 0:00:04.7]}
37... Rhg8 {[%clk 0:00:03.3]} 38. Qh7+ {[%clk 0:00:02.2]} 38... R3g7 {[%clk
0:00:02.2]} 39. Qxh5+ {[%clk 0:00:02.6]} 39... Kf8 {[%clk 0:00:02.8]} 40. Kh1
{[%clk 0:00:02.4]} 40... Rxg2 {[%clk 0:00:02.4]} 41. Rxe5 {[%clk 0:00:03.1]}
41... fxe5 {[%clk 0:00:02.9]} 42. Nxe5 {[%clk 0:00:04]} 42... Qxf2 {[%clk
0:00:02.1]} 43. Nxd7+ {[%clk 0:00:03.2]} 43... Ke7 {[%clk 0:00:02.5]} 44. Qh4+
{[%clk 0:00:03.1]} 44... Qxh4 {[%clk 0:00:01.6]} 45. Rxe6+ {[%clk 0:00:03.7]}
45... Kxe6 {[%clk 0:00:01.5]} 46. Nf8+ {[%clk 0:00:04.6]} 46... Ke5 {[%clk
0:00:02.4]} 47. Ne6 {[%clk 0:00:05.3]} 47... Kxe6 {[%clk 0:00:02.7]} 48. b4
{[%clk 0:00:04.6]} 48... Rg1+ {[%clk 0:00:03.6]} 49. Kh2 {[%clk 0:00:04.7]}
49... Qg3# {[%clk 0:00:04.5]} 0-1

[Event "Early-Titled-Tuesday-Blitz-May-28-2024"]
[Site "Chess.com"]
[Date "2024.05.28"]
[Round "9"]
[White "Szachulec75"]
[Black "BashirliSaadat"]
[Result "0-1"]
[WhiteElo "2187"]
[BlackElo "2376"]
[TimeControl "180+1"]
[EndTime "9:47:37 PDT"]
[Termination "BashirliSaadat won by resignation"]

1. Nf3 {[%clk 0:02:58.9]} 1... d5 {[%clk 0:02:59.7]} 2. g3 {[%clk 0:02:52.4]}
2... c6 {[%clk 0:02:59]} 3. Bg2 {[%clk 0:02:52.9]} 3... Nf6 {[%clk 0:02:59.5]}
4. d3 {[%clk 0:02:53.4]} 4... g6 {[%clk 0:02:59.7]} 5. O-O {[%clk 0:02:54]} 5...
Bg7 {[%clk 0:03:00.3]} 6. Nbd2 {[%clk 0:02:54.1]} 6... O-O {[%clk 0:03:00.9]} 7.
e4 {[%clk 0:02:54.3]} 7... dxe4 {[%clk 0:03:01.8]} 8. dxe4 {[%clk 0:02:53.9]}
8... Bg4 {[%clk 0:03:02.4]} 9. c3 {[%clk 0:02:54]} 9... Nbd7 {[%clk 0:03:00.5]}
10. Qc2 {[%clk 0:02:53.8]} 10... Nc5 {[%clk 0:02:58.8]} 11. h3 {[%clk
0:02:54.1]} 11... Bxf3 {[%clk 0:02:54.1]} 12. Bxf3 {[%clk 0:02:51.5]} 12... Qd3
{[%clk 0:02:52.5]} 13. Qxd3 {[%clk 0:02:50.7]} 13... Nxd3 {[%clk 0:02:52.8]} 14.
Nb3 {[%clk 0:02:47.6]} 14... a5 {[%clk 0:02:49.8]} 15. a4 {[%clk 0:02:42.5]}
15... Rfd8 {[%clk 0:02:46.2]} 16. Rb1 {[%clk 0:02:41.3]} 16... Nd7 {[%clk
0:02:36.7]} 17. Be3 {[%clk 0:02:37.9]} 17... N7e5 {[%clk 0:02:14.5]} 18. Be2
{[%clk 0:02:29.4]} 18... Nc4 {[%clk 0:02:12]} 19. Bd4 {[%clk 0:01:59.9]} 19...
Ndxb2 {[%clk 0:01:42.2]} 20. Bxg7 {[%clk 0:01:48.1]} 20... Kxg7 {[%clk
0:01:39.7]} 21. Nc5 {[%clk 0:01:48.5]} 21... b6 {[%clk 0:01:30.9]} 22. Bxc4
{[%clk 0:01:39]} 22... Nxc4 {[%clk 0:01:31.8]} 23. Nb3 {[%clk 0:01:37]} 23...
Rd3 {[%clk 0:01:25.3]} 24. Rfc1 {[%clk 0:01:29.9]} 24... e5 {[%clk 0:01:21.3]}
25. Kf1 {[%clk 0:01:27]} 25... Rad8 {[%clk 0:01:19.6]} 26. Ke2 {[%clk
0:01:27.1]} 26... f5 {[%clk 0:01:13.5]} 27. exf5 {[%clk 0:01:22.1]} 27... gxf5
{[%clk 0:01:14.4]} 28. Ra1 {[%clk 0:01:09]} 28... Kf6 {[%clk 0:01:11.1]} 29. Ra2
{[%clk 0:01:09.4]} 29... c5 {[%clk 0:00:56]} 30. Rcc2 {[%clk 0:01:07.7]} 30...
Rd1 {[%clk 0:00:48.3]} 31. Nd4 {[%clk 0:00:56.4]} 31... Rb1 {[%clk 0:00:35.1]}
32. Nb5 {[%clk 0:00:41.8]} 32... Rdd1 {[%clk 0:00:28.3]} 33. Kf3 {[%clk
0:00:42]} 33... e4+ {[%clk 0:00:24.5]} 34. Kf4 {[%clk 0:00:37.9]} 34... Ne5
{[%clk 0:00:21.2]} 35. g4 {[%clk 0:00:37.9]} 35... Nd3+ {[%clk 0:00:20.3]} 36.
Kg3 {[%clk 0:00:36.9]} 36... Rg1+ {[%clk 0:00:19.9]} 37. Kh4 {[%clk 0:00:36.7]}
37... f4 {[%clk 0:00:18.8]} 38. Nc7 {[%clk 0:00:34.6]} 38... Ke5 {[%clk
0:00:17.6]} 39. Re2 {[%clk 0:00:33.1]} 39... Rbe1 {[%clk 0:00:15.2]} 40. Na8
{[%clk 0:00:25.7]} 40... Rxe2 {[%clk 0:00:12.9]} 41. Rxe2 {[%clk 0:00:25.1]}
41... Rb1 {[%clk 0:00:13]} 42. g5 {[%clk 0:00:20.1]} 42... c4 {[%clk 0:00:11.8]}
43. Kh5 {[%clk 0:00:20.2]} 43... Rh1 {[%clk 0:00:10.2]} 44. h4 {[%clk
0:00:19.9]} 44... f3 {[%clk 0:00:09.7]} 45. Rd2 {[%clk 0:00:19.1]} 45... Rh2
{[%clk 0:00:08.6]} 46. Kg4 {[%clk 0:00:18.3]} 46... Rxf2 {[%clk 0:00:07.8]} 47.
Rxf2 {[%clk 0:00:18.3]} 47... Nxf2+ {[%clk 0:00:08.3]} 48. Kg3 {[%clk
0:00:19.2]} 48... Nd3 {[%clk 0:00:07.9]} 49. h5 {[%clk 0:00:19.3]} 49... f2
{[%clk 0:00:06.9]} 50. Kg2 {[%clk 0:00:18.4]} 50... e3 {[%clk 0:00:07.2]} 51.
Kf1 {[%clk 0:00:16.7]} 51... Kf4 {[%clk 0:00:07]} 52. Nxb6 {[%clk 0:00:17.1]}
52... Kf3 {[%clk 0:00:06]} 0-1

[Event "Early-Titled-Tuesday-Blitz-May-28-2024"]
[Site "Chess.com"]
[Date "2024.05.28"]
[Round "9"]
[White "eightbyeightchess"]
[Black "Resignify"]
[Result "0-1"]
[WhiteElo "2390"]
[BlackElo "2318"]
[TimeControl "180+1"]
[EndTime "9:47:38 PDT"]
[Termination "Resignify won by resignation"]

1. d4 {[%clk 0:02:53.5]} 1... Nf6 {[%clk 0:02:59.3]} 2. c4 {[%clk 0:02:53]} 2...
g6 {[%clk 0:02:59.4]} 3. Nc3 {[%clk 0:02:53.1]} 3... Bg7 {[%clk 0:02:59.3]} 4.
Nf3 {[%clk 0:02:51.3]} 4... d6 {[%clk 0:02:59.2]} 5. e4 {[%clk 0:02:48.6]} 5...
O-O {[%clk 0:02:59.3]} 6. Bg5 {[%clk 0:02:44.9]} 6... c5 {[%clk 0:02:55.4]} 7.
dxc5 {[%clk 0:02:43.9]} 7... dxc5 {[%clk 0:02:55]} 8. Be2 {[%clk 0:02:42]} 8...
Nc6 {[%clk 0:02:53.4]} 9. O-O {[%clk 0:02:41.1]} 9... Bg4 {[%clk 0:02:50.4]} 10.
Be3 {[%clk 0:01:53.3]} 10... Bxf3 {[%clk 0:02:37.9]} 11. Bxf3 {[%clk 0:01:50.3]}
11... Nd4 {[%clk 0:02:30.6]} 12. e5 {[%clk 0:01:35.3]} 12... Nd7 {[%clk
0:02:17.4]} 13. Bxd4 {[%clk 0:01:31.3]} 13... cxd4 {[%clk 0:02:15.8]} 14. Qxd4
{[%clk 0:01:31]} 14... Nxe5 {[%clk 0:02:06.1]} 15. Qxd8 {[%clk 0:01:25.2]} 15...
Rfxd8 {[%clk 0:02:05.6]} 16. Bxb7 {[%clk 0:01:25.1]} 16... Rab8 {[%clk 0:02:04]}
17. Ba6 {[%clk 0:01:15.7]} 17... Rxb2 {[%clk 0:02:01.3]} 18. Rad1 {[%clk
0:00:47.6]} 18... Rbd2 {[%clk 0:01:43.7]} 19. Nd5 {[%clk 0:00:19.1]} 19... Rxd1
{[%clk 0:01:30.1]} 20. Rxd1 {[%clk 0:00:20]} 20... Kf8 {[%clk 0:01:24.4]} 21.
Rc1 {[%clk 0:00:15.3]} 21... Nd3 {[%clk 0:01:07.9]} 22. Rb1 {[%clk 0:00:13.9]}
22... e6 {[%clk 0:00:44.4]} 23. Ne3 {[%clk 0:00:11.8]} 23... Bd4 {[%clk
0:00:27.5]} 24. g3 {[%clk 0:00:09.9]} 24... Ke7 {[%clk 0:00:19.4]} 25. Rb7+
{[%clk 0:00:09.7]} 25... Rd7 {[%clk 0:00:13.4]} 26. Rxd7+ {[%clk 0:00:09.5]}
26... Kxd7 {[%clk 0:00:14.3]} 27. Kf1 {[%clk 0:00:09.6]} 27... Bxe3 {[%clk
0:00:08.1]} 28. fxe3 {[%clk 0:00:10.5]} 28... Nc1 {[%clk 0:00:03.3]} 29. a3
{[%clk 0:00:06.8]} 29... Nb3 {[%clk 0:00:02.4]} 30. Ke2 {[%clk 0:00:05.7]} 30...
Kd6 {[%clk 0:00:02]} 31. Bb5 {[%clk 0:00:05.3]} 31... f6 {[%clk 0:00:01.4]} 32.
Kd3 {[%clk 0:00:05.7]} 32... Nc5+ {[%clk 0:00:01]} 33. Kc3 {[%clk 0:00:06.2]}
33... e5 {[%clk 0:00:01.6]} 34. Kb4 {[%clk 0:00:06.5]} 34... f5 {[%clk
0:00:02.1]} 35. Be8 {[%clk 0:00:06.2]} 35... g5 {[%clk 0:00:02.2]} 36. Kb5
{[%clk 0:00:05.8]} 36... h6 {[%clk 0:00:03.1]} 37. Bg6 {[%clk 0:00:04.8]} 37...
f4 {[%clk 0:00:04]} 38. exf4 {[%clk 0:00:04.2]} 38... exf4 {[%clk 0:00:04.9]}
39. gxf4 {[%clk 0:00:04.7]} 39... gxf4 {[%clk 0:00:05.8]} 40. Bh5 {[%clk
0:00:05.4]} 40... Nd3 {[%clk 0:00:05.7]} 41. Bf3 {[%clk 0:00:04.8]} 41... Nc5
{[%clk 0:00:06.6]} 42. a4 {[%clk 0:00:04.2]} 42... Nb3 {[%clk 0:00:06.1]} 43.
Ka6 {[%clk 0:00:03.7]} 43... Nc5+ {[%clk 0:00:07]} 44. Kxa7 {[%clk 0:00:03.9]}
44... Nxa4 {[%clk 0:00:07.6]} 45. Kb7 {[%clk 0:00:04.2]} 45... Kc5 {[%clk
0:00:07.4]} 46. Bd5 {[%clk 0:00:03.8]} 46... Nb2 {[%clk 0:00:07.2]} 47. Bf3
{[%clk 0:00:02.5]} 47... Nxc4 {[%clk 0:00:08.1]} 48. Kc7 {[%clk 0:00:03.1]}
48... Kd4 {[%clk 0:00:08.5]} 49. Kc6 {[%clk 0:00:03]} 49... Ke3 {[%clk
0:00:08.7]} 50. Bd5 {[%clk 0:00:01]} 50... f3 {[%clk 0:00:09.5]} 51. Kc5 {[%clk
0:00:01.7]} 51... Nd2 {[%clk 0:00:09]} 52. Kb4 {[%clk 0:00:01.9]} 52... f2
{[%clk 0:00:09.2]} 53. Bg2 {[%clk 0:00:02.8]} 53... f1=Q {[%clk 0:00:09.2]} 54.
Kc3 {[%clk 0:00:03.7]} 54... Qxg2 {[%clk 0:00:08.8]} 0-1

[Event "Early-Titled-Tuesday-Blitz-May-28-2024"]
[Site "Chess.com"]
[Date "2024.05.28"]
[Round "9"]
[White "Bilan_Danila"]
[Black "salomez"]
[Result "1-0"]
[WhiteElo "2544"]
[BlackElo "2348"]
[TimeControl "180+1"]
[EndTime "9:47:39 PDT"]
[Termination "Bilan_Danila won on time"]

1. d4 {[%clk 0:03:00.9]} 1... Nf6 {[%clk 0:02:57.5]} 2. Nf3 {[%clk 0:03:00.5]}
2... g6 {[%clk 0:02:56.2]} 3. Bg5 {[%clk 0:02:58.3]} 3... Bg7 {[%clk 0:02:55.9]}
4. c3 {[%clk 0:02:58.7]} 4... d5 {[%clk 0:02:56.2]} 5. Nbd2 {[%clk 0:02:58.6]}
5... O-O {[%clk 0:02:54.2]} 6. e3 {[%clk 0:02:58]} 6... b6 {[%clk 0:02:54.1]} 7.
Ne5 {[%clk 0:02:49.1]} 7... Ba6 {[%clk 0:02:49.3]} 8. Bxa6 {[%clk 0:02:44.4]}
8... Nxa6 {[%clk 0:02:48.8]} 9. Qa4 {[%clk 0:02:40.4]} 9... Nb8 {[%clk
0:02:48.3]} 10. O-O {[%clk 0:02:38.7]} 10... c6 {[%clk 0:02:36.6]} 11. c4 {[%clk
0:02:23.4]} 11... dxc4 {[%clk 0:02:32]} 12. Qxc4 {[%clk 0:02:24.3]} 12... c5
{[%clk 0:02:26.5]} 13. Ndf3 {[%clk 0:02:14.1]} 13... cxd4 {[%clk 0:02:21.2]} 14.
Nxd4 {[%clk 0:02:07.5]} 14... Nbd7 {[%clk 0:02:17.7]} 15. Nec6 {[%clk
0:01:44.1]} 15... Qe8 {[%clk 0:02:17.7]} 16. Rac1 {[%clk 0:01:36.1]} 16... Rc8
{[%clk 0:02:01.7]} 17. Qb4 {[%clk 0:01:22.4]} 17... Nc5 {[%clk 0:01:45.7]} 18.
Nxa7 {[%clk 0:01:15.7]} 18... Ra8 {[%clk 0:01:12.1]} 19. Qxb6 {[%clk 0:00:56.2]}
19... Nd3 {[%clk 0:01:07.8]} 20. Rc2 {[%clk 0:00:40]} 20... Nd5 {[%clk
0:00:24.1]} 21. Qa5 {[%clk 0:00:26]} 21... N5b4 {[%clk 0:00:20.2]} 22. Rc7
{[%clk 0:00:22.7]} 22... e5 {[%clk 0:00:19.9]} 23. Ndb5 {[%clk 0:00:16.5]} 23...
e4 {[%clk 0:00:19]} 24. Be7 {[%clk 0:00:15.9]} 24... Nd5 {[%clk 0:00:12.7]} 25.
Bxf8 {[%clk 0:00:08.1]} 25... Bxf8 {[%clk 0:00:12.5]} 26. Rb7 {[%clk 0:00:06.2]}
26... Bb4 {[%clk 0:00:11.7]} 27. Qa6 {[%clk 0:00:05.4]} 27... Nxb2 {[%clk
0:00:09.4]} 28. a3 {[%clk 0:00:02.8]} 28... Bc5 {[%clk 0:00:08.9]} 29. Qc6
{[%clk 0:00:02.8]} 29... Bxa7 {[%clk 0:00:07.6]} 30. Qxe8+ {[%clk 0:00:02.7]}
30... Rxe8 {[%clk 0:00:07]} 31. Rxa7 {[%clk 0:00:03.6]} 31... Nc4 {[%clk
0:00:06.3]} 32. Nd4 {[%clk 0:00:03.4]} 32... Nc3 {[%clk 0:00:06.4]} 33. a4
{[%clk 0:00:03.9]} 33... Rd8 {[%clk 0:00:05.5]} 34. h3 {[%clk 0:00:04.1]} 34...
Na2 {[%clk 0:00:04.6]} 35. a5 {[%clk 0:00:04.3]} 35... Nb4 {[%clk 0:00:05.5]}
36. a6 {[%clk 0:00:04.6]} 36... Rd6 {[%clk 0:00:05.6]} 37. Ra8+ {[%clk
0:00:05.1]} 37... Kg7 {[%clk 0:00:06.5]} 38. a7 {[%clk 0:00:06]} 38... Ra6
{[%clk 0:00:06.8]} 39. Rb1 {[%clk 0:00:06.2]} 39... Nd3 {[%clk 0:00:06.2]} 40.
Rf1 {[%clk 0:00:05.5]} 40... Nb6 {[%clk 0:00:05]} 41. Rb8 {[%clk 0:00:05.8]}
41... Nd7 {[%clk 0:00:03.1]} 42. a8=Q {[%clk 0:00:06]} 42... Nxb8 {[%clk
0:00:03.4]} 43. Qb7 {[%clk 0:00:05.7]} 43... Ra1 {[%clk 0:00:02.9]} 44. Qxb8
{[%clk 0:00:05.8]} 1-0